fUSD/lending_fUSD_20240517
["ID","MTS","AMOUNT","RATE_DAILY","PERIOD"]
[327245941,1715920247485,-500.0,0.00012999,2]
[327245942,1715920247494,-633.52968411,0.00012999,2]
[327245943,1715920247503,-526.13013677,0.00012999,2]
[327245944,1715920247513,-500.0,0.00012999,2]
[327245945,1715920247522,-153.24047947,0.00012999,2]
[327245946,1715920247532,-500.0,0.00012999,2]
[327245947,1715920247541,-324.76541105,0.00012999,2]
[327245948,1715920247551,-335.05557303,0.00012999,2]
[327245949,1715920247560,-313.47654262,0.00012999,2]
[327245950,1715920247569,-182.65978333,0.00012999,2]
[327245951,1715920247578,-213.54007484,0.00012999,2]
[327245952,1715920247587,-500.0,0.00012999,2]
[327245953,1715920247597,-195.92948681,0.00012999,2]
[327245954,1715920247606,-500.0,0.00012999,2]
[327245955,1715920247615,-500.0,0.00012999,2]
[327245956,1715920247624,-348.9161136,0.00012999,2]
[327245957,1715920247634,-500.0,0.00012999,2]
[327245958,1715920247643,-500.0,0.00012999,2]
[327245959,1715920247652,-223.90980162,0.00012999,2]
[327245960,1715920247661,-500.0,0.00012999,2]
[327245961,1715920247670,-439.56739486,0.00012999,2]
[327245962,1715920247679,-500.0,0.00012999,2]
[327245963,1715920247688,-533.11898389,0.00012999,2]
[327245964,1715920247697,-551.01292521,0.00012999,2]
[327245965,1715920247707,-345.80571526,0.00012999,2]
[327245966,1715920247717,-500.0,0.00012999,2]
[327245967,1715920247727,-647.04513348,0.00012999,2]
[327245968,1715920247736,-500.0,0.00012999,2]
[327245969,1715920247746,-366.51503502,0.00012999,2]
[327245970,1715920247755,-500.0,0.00012999,2]
[327245971,1715920247765,-500.0,0.00012999,2]
[327245972,1715920247774,-500.0,0.00012999,2]
[327245973,1715920247784,-500.0,0.00012999,2]
[327245974,1715920247796,-321.86578058,0.00012999,2]
[327245975,1715920247805,-209.9850607,0.00012999,2]
[327245976,1715920247814,-310.12958961,0.00012999,2]
[327245977,1715920247823,-285.00927637,0.00012999,2]
[327245978,1715920247833,-500.0,0.00012999,2]
[327245979,1715920247842,-500.0,0.00012999,2]
[327245980,1715920247851,-500.0,0.00012999,2]
[327245981,1715920247860,-500.0,0.00012999,2]
[327245982,1715920247869,-500.0,0.00012999,2]
[327245983,1715920247879,-205.9521295,0.00012999,2]
[327245984,1715920247889,-283.01291276,0.00012999,2]
[327245985,1715920247898,-500.0,0.00012999,2]
[327245986,1715920247908,-361.49680555,0.00012999,2]
[327245987,1715920247918,-500.0,0.00012999,2]
[327245988,1715920247929,-492.43770824,0.00012999,2]
[327245989,1715920247938,-500.0,0.00012999,2]
[327245990,1715920247947,-482.32729354,0.00012999,2]
[327245991,1715920247957,-532.53404413,0.00012999,2]
[327245992,1715920247966,-500.0,0.00012999,2]
[327245993,1715920247976,-519.39667604,0.00012999,2]
[327245994,1715920247985,-442.57921533,0.00012999,2]
[327245995,1715920247994,-500.0,0.00012999,2]
[327245996,1715920248003,-462.0657605,0.00012999,2]
[327245997,1715920248013,-500.0,0.00012999,2]
[327245998,1715920248022,-187.7715773,0.00012999,2]
[327245999,1715920248031,-500.0,0.00012999,2]
[327246000,1715920248042,-269.01620652,0.00012999,2]
[327246001,1715920248054,-500.0,0.00012999,2]
[327246002,1715920248064,-422.82231576,0.00012999,2]
[327246003,1715920248073,-500.0,0.00012999,2]
[327246004,1715920248082,-500.0,0.00012999,2]
[327246005,1715920248091,-500.0,0.00012999,2]
[327246006,1715920248100,-500.0,0.00012999,2]
[327246007,1715920248109,-500.0,0.00012999,2]
[327246008,1715920248118,-500.0,0.00012999,2]
[327246009,1715920248126,-624.12310364,0.00012999,2]
[327246010,1715920248135,-500.0,0.00012999,2]
[327246011,1715920248144,-520.67136614,0.00012999,2]
[327246012,1715920248153,-500.0,0.00012999,2]
[327246013,1715920248167,-500.0,0.00012999,2]
[327246014,1715920248176,-500.0,0.00012999,2]
[327246015,1715920248185,-500.0,0.00012999,2]
[327246016,1715920248195,-500.0,0.00012999,2]
[327246017,1715920248206,-612.80988478,0.00012999,2]
[327246018,1715920248215,-500.0,0.00012999,2]
[327246019,1715920248225,-524.50595097,0.00012999,2]
[327246020,1715920248234,-151.0,0.00012999,2]
[327246021,1715920248245,-500.0,0.00012999,2]
[327246022,1715920248254,-500.0,0.00012999,2]
[327246023,1715920248264,-500.0,0.00012999,2]
[327246024,1715920248273,-291.9782576,0.00012999,2]
[327246025,1715920248282,-500.0,0.00012999,2]
[327246026,1715920248294,-500.0,0.00012999,2]
[327246027,1715920248305,-500.0,0.00012999,2]
[327246028,1715920248314,-500.0,0.00012999,2]
[327246029,1715920248324,-500.0,0.00012999,2]
[327246030,1715920248334,-220.07966909,0.00012999,2]
[327246031,1715920248343,-500.0,0.00012999,2]
[327246032,1715920248354,-390.28951769,0.00012999,2]
[327246033,1715920248363,-152.66364,0.00012999,2]
[327246034,1715920248372,-500.0,0.00012999,2]
[327246035,1715920248381,-184.25596105,0.00012999,2]
[327246036,1715920248390,-480.04245269,0.00012999,2]
[327246037,1715920248400,-18549.84099677,0.00012999,2]
[327246038,1715920248849,-500.0,0.00012728,2]
[327246039,1715920248858,-150.0,0.00012732,2]
[327246040,1715920248867,-150.0,0.00012743,2]
[327246041,1715920248877,-150.0,0.00012746,2]
[327246042,1715920248886,-150.0,0.00012757,2]
[327246043,1715920248895,-150.0,0.00012784,2]
[327246044,1715920248904,-150.0,0.00012798,2]
[327246045,1715920248913,-150.0,0.00012814,2]
[327246046,1715920248922,-150.0,0.00012814,2]
[327246047,1715920248932,-150.0,0.00012814,2]
[327246048,1715920248941,-150.0,0.00012827,2]
[327246049,1715920248950,-150.0,0.00012842,2]
[327246050,1715920248959,-150.0,0.00012851,2]
[327246051,1715920248969,-150.0,0.00012852,2]
[327246052,1715920248978,-150.0,0.00012858,2]
[327246053,1715920248987,-150.0,0.00012869,2]
[327246054,1715920248996,-150.0,0.00012869,2]
[327246055,1715920249006,-150.0,0.00012889,2]
[327246056,1715920249016,-150.0,0.00012891,2]
[327246057,1715920249025,-150.0,0.00012895,2]
[327246058,1715920249033,-221.0251288,0.000129,2]
[327246059,1715920249044,-1009.0,0.000129,2]
[327246060,1715920249053,-150.0,0.00012918,2]
[327246061,1715920249062,-500.0,0.00012925,2]
[327246062,1715920249071,-150.0,0.0001293,2]
[327246063,1715920249079,-150.0,0.00012931,2]
[327246064,1715920249087,-150.0,0.00012941,2]
[327246065,1715920249097,-150.0,0.00012942,2]
[327246066,1715920249105,-150.0,0.00012942,2]
[327246067,1715920249114,-150.0,0.00012946,2]
[327246068,1715920249123,-82.3748712,0.00012951,2]
[327246069,1715920249158,-150.0,0.00012767,2]
[327246070,1715920249170,-67.6251288,0.00012951,2]
[327246071,1715920249179,-150.0,0.00012976,2]
[327246072,1715920249188,-68.01676306,0.0001298,2]
[327246073,1715920249218,-150.0,0.0001274,2]
[327246074,1715920249227,-81.98323694,0.0001298,2]
[327246075,1715920249239,-150.0,0.00012991,2]
[327246076,1715920249249,-150.0,0.00012992,2]
[327246077,1715920249259,-150.0,0.00012995,2]
[327246078,1715920249268,-150.0,0.00012996,2]
[327246079,1715920249277,-150.0,0.00012998,2]
[327246080,1715920249287,-58645.68465585,0.00012999,2]
[327246081,1715920249298,-500.0,0.00012999,2]
[327246082,1715920249307,-510.48719628,0.00012999,2]
[327246083,1715920249316,-500.0,0.00012999,2]
[327246084,1715920249326,-500.0,0.00012999,2]
[327246085,1715920249335,-500.0,0.00012999,2]
[327246086,1715920249344,-408.36581715,0.00012999,2]
[327246087,1715920249353,-500.0,0.00012999,2]
[327246088,1715920249362,-500.0,0.00012999,2]
[327246089,1715920249372,-577.44475924,0.00012999,2]
[327246090,1715920249381,-248.50790558,0.00012999,2]
[327246091,1715920249390,-500.0,0.00012999,2]
[327246092,1715920249399,-265.99636853,0.00012999,2]
[327246093,1715920249408,-151.0,0.00012999,2]
[327246094,1715920249417,-500.0,0.00012999,2]
[327246095,1715920249426,-500.0,0.00012999,2]
[327246096,1715920249436,-297.54747262,0.00012999,2]
[327246097,1715920249445,-151.064753,0.00012999,2]
[327246098,1715920249454,-500.0,0.00012999,2]
[327246099,1715920249465,-628.39203447,0.00012999,2]
[327246100,1715920249474,-639.00414652,0.00012999,2]
[327246101,1715920249483,-417.13359438,0.00012999,2]
[327246102,1715920249510,-150.0,0.00012797,2]
[327246103,1715920249520,-150.0,0.00012858,2]
[327246104,1715920249529,-82.86640562,0.00012999,2]
[327246105,1715920249571,-500.0,0.00012999,2]
[327246106,1715920249581,-500.0,0.00012999,2]
[327246107,1715920249590,-370.56135334,0.00012999,2]
[327246108,1715920249600,-500.0,0.00012999,2]
[327246109,1715920249609,-513.50067523,0.00012999,2]
[327246110,1715920249619,-500.0,0.00012999,2]
[327246111,1715920249629,-380.1968646,0.00012999,2]
[327246112,1715920249638,-500.0,0.00012999,2]
[327246113,1715920249647,-500.0,0.00012999,2]
[327246114,1715920249657,-500.8581961,0.00012999,2]
[327246115,1715920249666,-494.81819527,0.00012999,2]
[327246116,1715920249675,-492.3100554,0.00012999,2]
[327246117,1715920249684,-500.0,0.00012999,2]
[327246118,1715920249694,-446.62405016,0.00012999,2]
[327246119,1715920249703,-505.34601197,0.00012999,2]
[327246120,1715920249712,-500.0,0.00012999,2]
[327246121,1715920249723,-204.24787478,0.00012999,2]
[327246122,1715920249733,-151.393022,0.00012999,2]
[327246123,1715920249743,-500.0,0.00012999,2]
[327246124,1715920249752,-595.86390918,0.00012999,2]
[327246125,1715920249762,-152.303608,0.00012999,2]
[327246126,1715920249771,-161.094692,0.00012999,2]
[327246127,1715920249781,-32.45123714,0.00012999,2]
[327246128,1715920249796,-132.43254186,0.00012999,2]
[327246129,1715920249805,-500.0,0.00012999,2]
[327246130,1715920249815,-151.0,0.00012999,2]
[327246131,1715920249824,-153.205108,0.00012999,2]
[327246132,1715920249833,-150.76347952,0.00012999,2]
[327246133,1715920249842,-213.92297933,0.00012999,2]
[327246134,1715920249851,-327.52216099,0.00012999,2]
[327246135,1715920250481,-155.0,0.00012727,2]
[327246136,1715920250490,-150.0,0.00012728,2]
[327246137,1715920250499,-150.0,0.00012737,2]
[327246138,1715920250509,-150.0,0.00012738,2]
[327246139,1715920250519,-150.0,0.00012742,2]
[327246140,1715920250528,-150.0,0.00012744,2]
[327246141,1715920250538,-150.0,0.00012752,2]
[327246142,1715920250551,-150.0,0.00012754,2]
[327246143,1715920250560,-150.0,0.00012757,2]
[327246144,1715920250569,-150.0,0.0001276,2]
[327246145,1715920250577,-150.0,0.00012762,2]
[327246146,1715920250587,-150.0,0.00012775,2]
[327246147,1715920250596,-150.0,0.00012776,2]
[327246148,1715920250606,-25.00890667,0.00012779,2]
[327246149,1715920250681,-124.99109333,0.00012779,2]
[327246150,1715920250691,-150.0,0.00012785,2]
[327246151,1715920250700,-135.16165271,0.00012789,2]
[327246158,1715920586214,930.2,0.0002308,120]
[327246179,1715921431709,-444.24533192,9.337e-05,2]
[327246180,1715921431725,-333.76929468,9.337e-05,2]
[327246181,1715921431735,-964.19357353,9.337e-05,2]
[327246182,1715921431745,-313.76801603,9.338e-05,2]
[327246183,1715921431754,-2765.16,9.343e-05,2]
[327246184,1715921431764,-273.332201,0.00010304,2]
[327246185,1715921431774,-150.0,0.00010356,2]
[327246186,1715921431783,-757.77691476,0.00010379,2]
[327246187,1715921431802,-716.59388063,0.00010379,2]
[327246188,1715921431816,-2657.0803135,0.00010379,2]
[327246192,1715921437604,-400.0,0.00010379,2]
[327246193,1715921437709,-3481.24225811,0.00010379,2]
[327246194,1715921437718,-50961.70926588,0.0001038,2]
[327246195,1715921437728,-538.6,0.00011248,2]
[327246196,1715921437737,-200.0,0.00011282,2]
[327246197,1715921437747,-722.01,0.00011284,2]
[327246198,1715921437756,-250.0,0.00011292,2]
[327246199,1715921437765,-872.81,0.00011293,15]
[327246200,1715921437774,-179.51,0.00011308,2]
[327246201,1715921437783,-552.94,0.00011323,2]
[327246202,1715921437792,-704.0,0.00011539,2]
[327246203,1715921437802,-184.48,0.00011591,2]
[327246204,1715921437811,-2765.16,0.00011606,2]
[327246205,1715921437820,-154.20842833,0.00011763,2]
[327246206,1715921437829,-169.76,0.00011793,2]
[327246207,1715921437839,-173.762642,0.00011809,2]
[327246208,1715921437849,-169.121436,0.00011809,2]
[327246209,1715921437858,-154.20842833,0.00011826,2]
[327246210,1715921437867,-154.20842833,0.00011889,2]
[327246211,1715921437878,-154.20842833,0.00011952,2]
[327246212,1715921437887,-169.121436,0.00011957,2]
[327246213,1715921437897,-5000.0,0.00012,2]
[327246214,1715921437906,-154.20842833,0.00012016,2]
[327246215,1715921437916,-198.1,0.00012055,2]
[327246216,1715921437925,-154.20842833,0.00012079,2]
[327246217,1715921437935,-19626.96507151,0.00012103,2]
[327246218,1715921437944,-3608.922,0.00012104,2]
[327246219,1715921437954,-169.121436,0.00012104,2]
[327246220,1715921437963,-154.20842833,0.00012142,2]
[327246221,1715921437972,-154.20842833,0.00012205,2]
[327246222,1715921437981,-169.121436,0.00012252,2]
[327246223,1715921437990,-154.20842833,0.00012268,2]
[327246224,1715921437999,-3657.93473762,0.00012289,2]
[327246225,1715921438011,-71.14226238,0.00012289,2]
[327246226,1715921438020,-154.20842833,0.00012331,2]
[327246227,1715921438029,-869.2,0.00012341,2]
[327246228,1715921438038,-869.2,0.00012341,2]
[327246229,1715921438047,-3692.873,0.00012354,2]
[327246230,1715921438056,-154.20842833,0.00012394,2]
[327246231,1715921438065,-169.121436,0.000124,2]
[327246232,1715921438075,-10934.65564137,0.000124,2]
[327246233,1715921438084,-3630.14,0.00012439,2]
[327246234,1715921438093,-154.20842833,0.00012457,2]
[327246235,1715921438102,-171.12,0.00012472,2]
[327246236,1715921438112,-3673.838,0.00012477,2]
[327246237,1715921438121,-252.32718806,0.000125,2]
[327246238,1715921438133,-155.0,0.000125,2]
[327246239,1715921438142,-154.20842833,0.0001252,2]
[327246240,1715921438151,-154.20842833,0.00012583,2]
[327246241,1715921438160,-1004.0,0.000126,2]
[327246242,1715921438169,-1000.0,0.000126,2]
[327246243,1715921438178,-752.0,0.0001261,2]
[327246244,1715921438188,-8930.9458,0.00012628,2]
[327246245,1715921438196,-154.20842833,0.00012647,2]
[327246246,1715921438206,-538.6,0.00012654,2]
[327246247,1715921438215,-1000.0,0.000127,3]
[327246248,1715921438225,-1000.0,0.000127,3]
[327246249,1715921438234,-1000.0,0.000127,2]
[327246250,1715921438243,-1396.0,0.000127,2]
[327246251,1715921438252,-1000.0,0.000127,2]
[327246252,1715921438262,-1000.0,0.000127,2]
[327246253,1715921438271,-1000.0,0.000127,2]
[327246254,1715921438280,-154.20842833,0.0001271,2]
[327246255,1715921438290,-155.19245772,0.00012726,2]
[327246256,1715921438300,-280.93308965,0.00012728,2]
[327246257,1715921438309,-462.62819517,0.00012728,2]
[327246258,1715921438319,-500.0,0.00012728,2]
[327246259,1715921438328,-500.0,0.00012728,2]
[327246260,1715921438337,-500.0,0.00012728,2]
[327246261,1715921438347,-500.0,0.00012728,2]
[327246262,1715921438357,-526.13013677,0.00012728,2]
[327246263,1715921438366,-500.0,0.00012728,2]
[327246264,1715921438378,-500.0,0.00012728,2]
[327246265,1715921438387,-182.65978333,0.00012728,2]
[327246266,1715921438397,-313.47654262,0.00012728,2]
[327246267,1715921438406,-213.54007484,0.00012728,2]
[327246268,1715921438414,-500.0,0.00012728,2]
[327246269,1715921438423,-500.0,0.00012728,2]
[327246270,1715921438433,-500.0,0.00012728,2]
[327246271,1715921438442,-500.0,0.00012728,2]
[327246272,1715921438451,-500.0,0.00012728,2]
[327246273,1715921438460,-551.01292521,0.00012728,2]
[327246274,1715921438469,-647.04513348,0.00012728,2]
[327246275,1715921438481,-500.0,0.00012728,2]
[327246276,1715921438491,-500.0,0.00012728,2]
[327246277,1715921438500,-500.0,0.00012728,2]
[327246278,1715921438510,-285.00927637,0.00012728,2]
[327246279,1715921438521,-283.01291276,0.00012728,2]
[327246280,1715921438531,-500.0,0.00012728,2]
[327246281,1715921438540,-500.0,0.00012728,2]
[327246282,1715921438549,-532.53404413,0.00012728,2]
[327246283,1715921438561,-500.0,0.00012728,2]
[327246284,1715921438571,-442.57921533,0.00012728,2]
[327246285,1715921438579,-500.0,0.00012728,2]
[327246286,1715921438589,-462.0657605,0.00012728,2]
[327246287,1715921438598,-500.0,0.00012728,2]
[327246288,1715921438607,-500.0,0.00012728,2]
[327246289,1715921438617,-500.0,0.00012728,2]
[327246290,1715921438628,-449.89195374,0.00012728,2]
[327246291,1715921438638,-253.22,0.00012728,2]
[327246292,1715921438647,-335.05557303,0.00012728,2]
[327246293,1715921438656,-333.3832408,0.00012728,2]
[327246294,1715921438666,-345.80571526,0.00012728,2]
[327246295,1715921438676,-310.12958961,0.00012728,2]
[327246296,1715921438685,-278.84930912,0.00012728,2]
[327246297,1715921438694,-346.18359584,0.00012728,2]
[327246298,1715921438703,-474.98800744,0.00012728,2]
[327246299,1715921438713,-500.0,0.00012728,2]
[327246300,1715921438722,-500.0,0.00012728,2]
[327246301,1715921438731,-500.0,0.00012728,2]
[327246302,1715921438740,-500.0,0.00012728,2]
[327246303,1715921438750,-252.58,0.00012728,2]
[327246304,1715921438759,-517.75879557,0.00012728,2]
[327246305,1715921438769,-187.00180011,0.00012728,2]
[327246306,1715921438778,-204.5312849,0.00012728,2]
[327246307,1715921438788,-500.0,0.00012728,2]
[327246308,1715921438798,-234.16156389,0.00012728,2]
[327246309,1715921438807,-520.11656677,0.00012728,2]
[327246310,1715921438817,-500.0,0.00012728,2]
[327246311,1715921438827,-500.0,0.00012728,2]
[327246312,1715921438836,-205.27411746,0.00012728,2]
[327246313,1715921438845,-500.0,0.00012728,2]
[327246314,1715921438855,-551.58900828,0.00012728,2]
[327246315,1715921438865,-500.0,0.00012728,2]
[327246316,1715921438877,-500.0,0.00012728,2]
[327246317,1715921438886,-329.5551129,0.00012728,2]
[327246318,1715921438895,-500.0,0.00012728,2]
[327246319,1715921438903,-476.71158414,0.00012728,2]
[327246320,1715921438912,-752.0,0.0001274,2]
[327246321,1715921438922,-154.20842833,0.00012773,2]
[327246322,1715921438931,-4895.0,0.00012783,2]
[327246323,1715921438941,-14.83834729,0.00012789,2]
[327246324,1715921438950,-18549.84099677,0.00012789,2]
[327246325,1715921438960,-7500.0,0.00012799,2]
[327246326,1715921438969,-154.20842833,0.00012836,2]
[327246327,1715921438978,-752.0,0.0001287,2]
[327246328,1715921438988,-1000.0,0.00012877,2]
[327246329,1715921439003,-1000.0,0.00012877,2]
[327246330,1715921439019,-1000.0,0.00012877,2]
[327246331,1715921439029,-158.0,0.00012877,2]
[327246332,1715921439038,-163.28,0.00012883,2]
[327246333,1715921439048,-626.56484918,0.00012892,2]
[327246334,1715921439057,-500.0,0.00012892,2]
[327246335,1715921439067,-500.0,0.00012892,2]
[327246336,1715921439077,-358.81,0.00012892,2]
[327246337,1715921439087,-500.0,0.00012892,2]
[327246338,1715921439096,-500.0,0.00012892,2]
[327246339,1715921439106,-500.0,0.00012892,2]
[327246340,1715921439116,-500.0,0.00012892,2]
[327246341,1715921439127,-500.0,0.00012892,2]
[327246342,1715921439136,-410.15274604,0.00012892,2]
[327246343,1715921439146,-500.0,0.00012892,2]
[327246344,1715921439155,-530.27208682,0.00012892,2]
[327246345,1715921439164,-500.0,0.00012892,2]
[327246346,1715921439174,-500.0,0.00012892,2]
[327246347,1715921439184,-3272.01,0.00012893,2]
[327246348,1715921439193,-29272.1,0.00012893,2]
[327246349,1715921439203,-5581.31778992,0.00012893,2]
[327246350,1715921439240,-401.1233,0.00012893,2]
[327246368,1715921440124,-1083.86161174,0.00012893,2]
[327246398,1715921442778,-500.0,0.00012892,2]
[327246399,1715921442791,-499.21105787,0.00012893,2]
[327246400,1715921442805,-328.46936375,0.00012893,2]
[327246423,1715921445803,-532.74333196,0.00012892,2]
[327246424,1715921445812,-500.0,0.00012892,2]
[327246425,1715921445822,-5371.96666804,0.00012893,2]
[327246426,1715921445834,-431.09085341,0.00012893,2]
[327246427,1715921445935,-6302.94935527,0.00012893,2]
[327246428,1715921445943,-1049.62913749,0.00012893,2]
[327246429,1715921445955,-5604.76086251,0.00012893,2]
[327246430,1715921445965,-500.0,0.00012895,2]
[327246431,1715921445974,-500.0,0.00012897,2]
[327246432,1715921445984,-500.0,0.00012897,2]
[327246433,1715921445993,-348.99843552,0.00012897,2]
[327246434,1715921446003,-500.0,0.00012897,2]
[327246435,1715921446012,-648.54255422,0.00012897,2]
[327246436,1715921446021,-505.28614277,0.00012897,2]
[327246437,1715921446030,-536.22643079,0.00012897,2]
[327246438,1715921446040,-500.0,0.00012897,2]
[327246439,1715921446049,-462.5120211,0.00012897,2]
[327246440,1715921446058,-503.83934272,0.00012897,2]
[327246441,1715921446067,-500.0,0.00012897,2]
[327246442,1715921446077,-319.31006038,0.00012897,2]
[327246443,1715921446086,-500.0,0.00012897,2]
[327246444,1715921446096,-500.0,0.00012897,2]
[327246445,1715921446106,-500.0,0.00012897,2]
[327246446,1715921446115,-527.54165806,0.00012897,2]
[327246447,1715921446124,-512.34665174,0.00012897,2]
[327246448,1715921446134,-500.0,0.00012897,2]
[327246449,1715921446143,-500.0,0.00012897,2]
[327246450,1715921446153,-500.0,0.00012897,2]
[327246451,1715921446162,-507.62206502,0.00012897,2]
[327246452,1715921446171,-500.0,0.00012897,2]
[327246453,1715921446180,-500.0,0.00012897,2]
[327246454,1715921446190,-254.84078746,0.00012897,2]
[327246455,1715921446199,-168.0658147,0.00012897,2]
[327246456,1715921446447,-500.0,0.00012897,2]
[327246457,1715921446458,-500.0,0.00012897,2]
[327246458,1715921446468,-192.06527487,0.00012897,2]
[327246459,1715921446480,-500.0,0.00012897,2]
[327246460,1715921446491,-395.86108481,0.00012897,2]
[327246461,1715921446500,-500.0,0.00012897,2]
[327246462,1715921446510,-241.50078748,0.00012897,2]
[327246463,1715921446520,-500.0,0.00012897,2]
[327246464,1715921446531,-507.10245043,0.00012897,2]
[327246465,1715921446540,-447.65330651,0.00012897,2]
[327246466,1715921446550,-500.0,0.00012897,2]
[327246467,1715921446561,-223.25,0.00012897,2]
[327246468,1715921446572,-417.34850282,0.00012897,2]
[327246469,1715921446582,-500.0,0.00012897,2]
[327246470,1715921446592,-607.13904326,0.00012897,2]
[327246471,1715921446602,-567.6883459,0.00012897,2]
[327246472,1715921446611,-500.0,0.00012897,2]
[327246473,1715921446620,-520.44204855,0.00012897,2]
[327246474,1715921446630,-500.0,0.00012897,2]
[327246475,1715921446639,-500.0,0.00012897,2]
[327246476,1715921446649,-500.0,0.00012897,2]
[327246477,1715921446660,-241.93706275,0.00012897,2]
[327246478,1715921446669,-500.0,0.00012897,2]
[327246479,1715921446678,-500.0,0.00012897,2]
[327246480,1715921446688,-394.76020743,0.00012897,2]
[327246481,1715921446697,-500.0,0.00012897,2]
[327246482,1715921446707,-500.0,0.00012897,2]
[327246483,1715921446716,-547.86975295,0.00012897,2]
[327246484,1715921446725,-500.0,0.00012897,2]
[327246485,1715921446735,-500.0,0.00012897,2]
[327246486,1715921446745,-500.0,0.00012897,2]
[327246487,1715921446754,-500.0,0.00012897,2]
[327246488,1715921446764,-500.0,0.00012897,2]
[327246489,1715921446773,-500.0,0.00012897,2]
[327246490,1715921446783,-500.0,0.00012897,2]
[327246491,1715921446793,-500.0,0.00012897,2]
[327246492,1715921446802,-613.11969696,0.00012897,2]
[327246493,1715921446812,-500.0,0.00012898,2]
[327246494,1715921446822,-500.0,0.00012898,2]
[327246495,1715921446831,-500.0,0.00012898,2]
[327246496,1715921446840,-469.20819319,0.00012898,2]
[327246497,1715921446849,-500.0,0.00012898,2]
[327246498,1715921446859,-500.0,0.00012898,2]
[327246499,1715921446868,-500.0,0.00012898,2]
[327246500,1715921446878,-500.0,0.00012898,2]
[327246501,1715921446888,-500.0,0.00012898,2]
[327246502,1715921446897,-500.0,0.00012898,2]
[327246503,1715921446906,-500.0,0.00012898,2]
[327246504,1715921446915,-500.0,0.00012898,2]
[327246505,1715921446924,-500.0,0.00012898,2]
[327246506,1715921446934,-500.0,0.00012898,2]
[327246507,1715921446943,-500.0,0.00012898,2]
[327246508,1715921446952,-500.0,0.00012898,2]
[327246509,1715921446963,-480.04245269,0.00012898,2]
[327246510,1715921446972,-500.0,0.00012898,2]
[327246511,1715921446981,-500.0,0.00012898,2]
[327246512,1715921446990,-513.76530466,0.00012898,2]
[327246513,1715921446999,-500.0,0.00012898,2]
[327246514,1715921447008,-500.0,0.00012898,2]
[327246515,1715921447019,-280.74777043,0.00012898,2]
[327246516,1715921447028,-500.0,0.00012898,2]
[327246517,1715921447038,-500.0,0.00012898,2]
[327246518,1715921447047,-308.13865478,0.00012898,2]
[327246519,1715921447057,-230.54698074,0.00012898,2]
[327246520,1715921447067,-157.76841035,0.00012898,2]
[327246521,1715921447076,-534.25949113,0.00012898,2]
[327246522,1715921447085,-500.0,0.00012898,2]
[327246523,1715921447095,-500.0,0.00012898,2]
[327246524,1715921447105,-500.0,0.00012898,2]
[327246525,1715921447114,-363.53781879,0.00012898,2]
[327246526,1715921447124,-530.05632156,0.00012898,2]
[327246527,1715921447134,-486.09763628,0.00012898,2]
[327246528,1715921447143,-516.51062847,0.00012898,2]
[327246529,1715921447153,-477.21359662,0.00012898,2]
[327246530,1715921447161,-479.80243251,0.00012898,2]
[327246531,1715921447171,-555.7,0.00012898,2]
[327246532,1715921447181,-359.73829631,0.00012898,2]
[327246533,1715921447190,-500.0,0.00012898,2]
[327246534,1715921447199,-500.0,0.00012898,2]
[327246535,1715921447209,-500.0,0.00012898,2]
[327246536,1715921447218,-500.0,0.00012898,2]
[327246537,1715921447227,-71680.53389119,0.00012899,2]